[Event "Early-Titled-Tuesday-Blitz-February-27-2024"]
[Site "Chess.com"]
[Date "2024.02.27"]
[Round "3"]
[White "Elprofessor21"]
[Black "MarijaKuznecova"]
[Result "1-0"]
[WhiteElo "2670"]
[BlackElo "2336"]
[TimeControl "180+1"]
[EndTime "8:30:12 PST"]
[Termination "Elprofessor21 won by resignation"]

1. d4 {[%clk 0:03:00.9]} 1... Nf6 {[%clk 0:02:56.1]} 2. c4 {[%clk 0:02:58]} 2...
c5 {[%clk 0:02:56.3]} 3. d5 {[%clk 0:02:57]} 3... b5 {[%clk 0:02:56.8]} 4. Nf3
{[%clk 0:02:51.5]} 4... g6 {[%clk 0:02:53.2]} 5. a4 {[%clk 0:02:50.1]} 5... bxc4
{[%clk 0:02:49.3]} 6. Nc3 {[%clk 0:02:49.5]} 6... d6 {[%clk 0:02:45.3]} 7. e4
{[%clk 0:02:49.1]} 7... Bg7 {[%clk 0:02:45.4]} 8. Bxc4 {[%clk 0:02:48.1]} 8...
O-O {[%clk 0:02:45.6]} 9. O-O {[%clk 0:02:48.7]} 9... Ba6 {[%clk 0:02:45]} 10.
Nd2 {[%clk 0:02:48.3]} 10... Nfd7 {[%clk 0:02:24.1]} 11. Qe2 {[%clk 0:02:41.7]}
11... Bxc4 {[%clk 0:02:23]} 12. Nxc4 {[%clk 0:02:41.8]} 12... Nb6 {[%clk
0:02:19.6]} 13. Na5 {[%clk 0:02:13.6]} 13... Qc7 {[%clk 0:01:41.8]} 14. Bg5
{[%clk 0:02:05.9]} 14... h6 {[%clk 0:01:38.8]} 15. Bh4 {[%clk 0:02:05.7]} 15...
e6 {[%clk 0:01:31]} 16. Bg3 {[%clk 0:01:54.1]} 16... e5 {[%clk 0:01:19]} 17.
Rfd1 {[%clk 0:01:47.2]} 17... N6d7 {[%clk 0:01:17.8]} 18. Nc6 {[%clk 0:01:44.8]}
18... g5 {[%clk 0:01:12.4]} 19. Nb5 {[%clk 0:01:43.7]} 19... Qb6 {[%clk
0:01:02.7]} 20. a5 {[%clk 0:01:41.2]} 20... Qa6 {[%clk 0:01:01.7]} 21. Ne7+
{[%clk 0:01:20.1]} 21... Kh7 {[%clk 0:00:59.3]} 22. Nf5 {[%clk 0:01:20.6]} 22...
Nf6 {[%clk 0:00:43.1]} 23. Nfxd6 {[%clk 0:01:19.7]} 23... Nbd7 {[%clk
0:00:43.5]} 24. Rd2 {[%clk 0:00:58.4]} 24... Rab8 {[%clk 0:00:35.8]} 25. h4
{[%clk 0:00:46.6]} 25... g4 {[%clk 0:00:34]} 26. h5 {[%clk 0:00:45.1]} 26... Rg8
{[%clk 0:00:31.3]} 27. Bh4 {[%clk 0:00:41.7]} 27... Bf8 {[%clk 0:00:29.2]} 28.
b4 {[%clk 0:00:21.1]} 28... Bxd6 {[%clk 0:00:24.3]} 29. Nxd6 {[%clk 0:00:21.2]}
29... Qxd6 {[%clk 0:00:24.9]} 30. bxc5 {[%clk 0:00:21.5]} 30... Nxc5 {[%clk
0:00:25]} 31. Rc1 {[%clk 0:00:18.9]} 31... Nxh5 {[%clk 0:00:14.4]} 32. Rdc2
{[%clk 0:00:17.6]} 32... Rbc8 {[%clk 0:00:13.3]} 33. Qc4 {[%clk 0:00:12.7]}
33... Nf4 {[%clk 0:00:10.8]} 34. Bg3 {[%clk 0:00:11.4]} 34... Nfd3 {[%clk
0:00:11.1]} 35. Rd1 {[%clk 0:00:11]} 35... Qd7 {[%clk 0:00:09.4]} 36. Rxd3
{[%clk 0:00:10]} 36... Nxd3 {[%clk 0:00:09.2]} 37. Qxd3 {[%clk 0:00:10.9]} 37...
Rxc2 {[%clk 0:00:09.3]} 38. Qxc2 {[%clk 0:00:11.8]} 38... Qd6 {[%clk 0:00:08]}
39. Qb2 {[%clk 0:00:12.7]} 39... Re8 {[%clk 0:00:07.7]} 40. Qb5 {[%clk
0:00:11.7]} 40... Re7 {[%clk 0:00:07.1]} 41. Kh2 {[%clk 0:00:11.9]} 41... Kg6
{[%clk 0:00:07.1]} 42. Qe2 {[%clk 0:00:12.2]} 42... h5 {[%clk 0:00:06.9]} 43.
Bh4 {[%clk 0:00:12.9]} 43... f6 {[%clk 0:00:06.4]} 44. f3 {[%clk 0:00:12.8]}
44... Rh7 {[%clk 0:00:06]} 45. fxg4 {[%clk 0:00:12.7]} 45... hxg4 {[%clk
0:00:06.9]} 46. Qxg4+ {[%clk 0:00:13.2]} 46... Kf7 {[%clk 0:00:07.7]} 47. g3
{[%clk 0:00:13]} 47... Qe7 {[%clk 0:00:07.8]} 48. Qf5 {[%clk 0:00:13.1]} 48...
Rg7 {[%clk 0:00:07.7]} 49. Kg2 {[%clk 0:00:13.7]} 49... Rg6 {[%clk 0:00:07.3]}
50. Qh5 {[%clk 0:00:13.8]} 50... Kg7 {[%clk 0:00:07.2]} 51. Qf5 {[%clk
0:00:14.1]} 51... Qa3 {[%clk 0:00:07.4]} 52. Qd7+ {[%clk 0:00:14.1]} 52... Kh6
{[%clk 0:00:08]} 53. Qe7 {[%clk 0:00:14.5]} 53... Qb2+ {[%clk 0:00:08.2]} 54.
Kh3 {[%clk 0:00:14.9]} 54... Qc1 {[%clk 0:00:07.8]} 55. Qf8+ {[%clk 0:00:14.6]}
55... Kh7 {[%clk 0:00:07.8]} 56. Qf7+ {[%clk 0:00:14.8]} 56... Kh6 {[%clk
0:00:08.3]} 57. Kg2 {[%clk 0:00:13.1]} 57... Qd2+ {[%clk 0:00:08.1]} 58. Kf3
{[%clk 0:00:12.8]} 58... Qd3+ {[%clk 0:00:08.3]} 59. Kf2 {[%clk 0:00:13.3]}
59... Qxe4 {[%clk 0:00:08.7]} 60. Qf8+ {[%clk 0:00:13.2]} 60... Kh7 {[%clk
0:00:08.7]} 61. Qf7+ {[%clk 0:00:13.7]} 61... Kh6 {[%clk 0:00:07.4]} 62. Qf8+
{[%clk 0:00:14]} 62... Kh5 {[%clk 0:00:06.5]} 63. d6 {[%clk 0:00:14.7]} 63...
Qf5+ {[%clk 0:00:06.2]} 64. Ke3 {[%clk 0:00:14.1]} 64... Kg4 {[%clk 0:00:05.3]}
65. Qe8 {[%clk 0:00:12.3]} 65... Qf3+ {[%clk 0:00:06]} 66. Kd2 {[%clk
0:00:12.6]} 66... Qf2+ {[%clk 0:00:06.3]} 67. Kc3 {[%clk 0:00:11.6]} 67... Qd4+
{[%clk 0:00:05.3]} 68. Kb3 {[%clk 0:00:12.1]} 68... Rg7 {[%clk 0:00:05.7]} 69.
Qe6+ {[%clk 0:00:11.7]} 69... Kf3 {[%clk 0:00:05.5]} 70. Qxf6+ {[%clk
0:00:12.1]} 70... Kg2 {[%clk 0:00:05.2]} 71. Qxg7 {[%clk 0:00:12.2]} 71... Qxd6
{[%clk 0:00:05.6]} 72. Qb7+ {[%clk 0:00:12.8]} 72... Kh3 {[%clk 0:00:05.1]} 73.
Qxa7 {[%clk 0:00:11.8]} 73... Qd3+ {[%clk 0:00:05]} 74. Kb4 {[%clk 0:00:11.6]}
74... e4 {[%clk 0:00:05.3]} 75. Qf7 {[%clk 0:00:09.2]} 75... e3 {[%clk
0:00:04.4]} 76. Qe6+ {[%clk 0:00:09.7]} 76... Kg2 {[%clk 0:00:04.4]} 77. a6
{[%clk 0:00:10]} 77... e2 {[%clk 0:00:04.3]} 78. a7 {[%clk 0:00:10.4]} 78...
Qd2+ {[%clk 0:00:04.5]} 79. Kb5 {[%clk 0:00:10.6]} 79... Qd3+ {[%clk 0:00:04.6]}
80. Kb6 {[%clk 0:00:10.7]} 80... Qd4+ {[%clk 0:00:04.7]} 81. Kb7 {[%clk
0:00:11.1]} 81... Qb4+ {[%clk 0:00:03.6]} 82. Qb6 {[%clk 0:00:11.4]} 82... e1=Q
{[%clk 0:00:03.4]} 83. a8=Q {[%clk 0:00:10.6]} 83... Qbe7+ {[%clk 0:00:02.6]}
84. Ka6+ {[%clk 0:00:10.4]} 84... Kh2 {[%clk 0:00:01.9]} 85. Qb2+ {[%clk
0:00:09.6]} 85... Q1e2+ {[%clk 0:00:01.9]} 86. Qxe2+ {[%clk 0:00:09.9]} 86...
Qxe2+ {[%clk 0:00:02.8]} 87. Kb7 {[%clk 0:00:10.8]} 87... Qf3+ {[%clk 0:00:03]}
88. Kb8 {[%clk 0:00:11.7]} 88... Qxa8+ {[%clk 0:00:02.4]} 89. Kxa8 {[%clk
0:00:11.7]} 89... Kh3 {[%clk 0:00:03.3]} 90. Kb7 {[%clk 0:00:12.5]} 90... Kg4
{[%clk 0:00:04.2]} 91. Kc6 {[%clk 0:00:13.2]} 1-0

[Event "Early-Titled-Tuesday-Blitz-February-27-2024"]
[Site "Chess.com"]
[Date "2024.02.27"]
[Round "3"]
[White "platy3"]
[Black "Witik"]
[Result "1/2-1/2"]
[WhiteElo "2941"]
[BlackElo "2718"]
[TimeControl "180+1"]
[EndTime "8:30:27 PST"]
[Termination "Game drawn - insufficient material"]

1. e4 {[%clk 0:03:00.9]} 1... c6 {[%clk 0:02:56.3]} 2. d4 {[%clk 0:02:58.1]}
2... d5 {[%clk 0:02:56.5]} 3. e5 {[%clk 0:02:58.8]} 3... Bf5 {[%clk 0:02:56.5]}
4. Nd2 {[%clk 0:02:56.6]} 4... e6 {[%clk 0:02:54.8]} 5. Nb3 {[%clk 0:02:56.6]}
5... Nd7 {[%clk 0:02:54.8]} 6. Nf3 {[%clk 0:02:56]} 6... Ne7 {[%clk 0:02:50.3]}
7. Be2 {[%clk 0:02:54.1]} 7... h6 {[%clk 0:02:48.1]} 8. O-O {[%clk 0:02:53.7]}
8... g5 {[%clk 0:02:47.4]} 9. a4 {[%clk 0:02:54.5]} 9... Bg7 {[%clk 0:02:41.2]}
10. a5 {[%clk 0:02:54]} 10... O-O {[%clk 0:02:38.2]} 11. Be3 {[%clk 0:02:51.7]}
11... Ng6 {[%clk 0:02:31.4]} 12. Ne1 {[%clk 0:02:47.8]} 12... Nf4 {[%clk
0:02:11.3]} 13. Bg4 {[%clk 0:02:37.2]} 13... Bxg4 {[%clk 0:01:57.2]} 14. Qxg4
{[%clk 0:02:36.4]} 14... f5 {[%clk 0:01:56.2]} 15. Qd1 {[%clk 0:02:19]} 15...
Ng6 {[%clk 0:01:53.1]} 16. f4 {[%clk 0:02:19.4]} 16... g4 {[%clk 0:01:44.3]} 17.
Nd3 {[%clk 0:02:18.2]} 17... Qe7 {[%clk 0:01:28.6]} 18. Qc1 {[%clk 0:02:16.6]}
18... Rfc8 {[%clk 0:01:19.2]} 19. c4 {[%clk 0:02:14.4]} 19... Qf7 {[%clk
0:00:51.6]} 20. Qc3 {[%clk 0:02:12.9]} 20... dxc4 {[%clk 0:00:51.5]} 21. Qxc4
{[%clk 0:02:12.9]} 21... Ne7 {[%clk 0:00:52.1]} 22. Bd2 {[%clk 0:01:51]} 22...
Nd5 {[%clk 0:00:50.9]} 23. Rfc1 {[%clk 0:01:48.8]} 23... Bf8 {[%clk 0:00:48]}
24. Qa4 {[%clk 0:01:44.8]} 24... a6 {[%clk 0:00:26.8]} 25. Rc2 {[%clk
0:01:36.7]} 25... h5 {[%clk 0:00:26.5]} 26. Be1 {[%clk 0:01:11.8]} 26... Be7
{[%clk 0:00:26.5]} 27. Nd2 {[%clk 0:01:09.7]} 27... h4 {[%clk 0:00:25.8]} 28.
Nc4 {[%clk 0:01:08.5]} 28... Kh7 {[%clk 0:00:17.9]} 29. Nd6 {[%clk 0:01:03.5]}
29... Bxd6 {[%clk 0:00:17.2]} 30. exd6 {[%clk 0:01:04.4]} 30... N7f6 {[%clk
0:00:10.7]} 31. Bxh4 {[%clk 0:01:02.1]} 31... Ne4 {[%clk 0:00:10.3]} 32. Ne5
{[%clk 0:01:00.9]} 32... Qh5 {[%clk 0:00:10.6]} 33. Bg3 {[%clk 0:00:56.6]} 33...
Nxd6 {[%clk 0:00:11]} 34. Re1 {[%clk 0:00:47.7]} 34... Ne4 {[%clk 0:00:11.4]}
35. Qb3 {[%clk 0:00:44.9]} 35... Rc7 {[%clk 0:00:10.2]} 36. Rce2 {[%clk
0:00:42.7]} 36... Nef6 {[%clk 0:00:06.8]} 37. Nc4 {[%clk 0:00:40.1]} 37... Ne4
{[%clk 0:00:05.7]} 38. Rxe4 {[%clk 0:00:26.4]} 38... fxe4 {[%clk 0:00:06]} 39.
Rxe4 {[%clk 0:00:21]} 39... Rf8 {[%clk 0:00:06.2]} 40. Rxe6 {[%clk 0:00:15.8]}
40... Qf5 {[%clk 0:00:04.9]} 41. Re1 {[%clk 0:00:15.5]} 41... Rff7 {[%clk
0:00:04.6]} 42. Ne5 {[%clk 0:00:14.6]} 42... Rfe7 {[%clk 0:00:05.2]} 43. Qa3
{[%clk 0:00:08.1]} 43... Nf6 {[%clk 0:00:05.4]} 44. Qd6 {[%clk 0:00:07.6]} 44...
Rg7 {[%clk 0:00:04.1]} 45. Qd8 {[%clk 0:00:05.3]} 45... Nd5 {[%clk 0:00:04.1]}
46. Qh4+ {[%clk 0:00:05]} 46... Kg8 {[%clk 0:00:04.7]} 47. Qd8+ {[%clk
0:00:05.4]} 47... Kh7 {[%clk 0:00:05]} 48. Nc4 {[%clk 0:00:04.7]} 48... Rce7
{[%clk 0:00:05.1]} 49. Ne5 {[%clk 0:00:03.1]} 49... Qh5 {[%clk 0:00:04.7]} 50.
Qf8 {[%clk 0:00:02.4]} 50... Qe8 {[%clk 0:00:02.7]} 51. Qxe8 {[%clk 0:00:02.3]}
51... Rxe8 {[%clk 0:00:02.7]} 52. Rc1 {[%clk 0:00:01.9]} 52... Nb4 {[%clk
0:00:02.7]} 53. Rf1 {[%clk 0:00:02.3]} 53... Nd5 {[%clk 0:00:03.2]} 54. Rf3
{[%clk 0:00:02]} 54... Rge7 {[%clk 0:00:02.9]} 55. Rf1 {[%clk 0:00:01.5]} 55...
Re6 {[%clk 0:00:03.1]} 56. Rf2 {[%clk 0:00:02.1]} 56... Rf6 {[%clk 0:00:03.6]}
57. h3 {[%clk 0:00:02.8]} 57... gxh3 {[%clk 0:00:03.8]} 58. gxh3 {[%clk
0:00:03.7]} 58... Ne3 {[%clk 0:00:04.7]} 59. Kh2 {[%clk 0:00:03.9]} 59... Nf5
{[%clk 0:00:05.2]} 60. Ng4 {[%clk 0:00:04.1]} 60... Rd6 {[%clk 0:00:05.1]} 61.
Ne5 {[%clk 0:00:04]} 61... Rxd4 {[%clk 0:00:05.4]} 62. Rg2 {[%clk 0:00:03.9]}
62... Rg8 {[%clk 0:00:06]} 63. Nf3 {[%clk 0:00:03.5]} 63... Rd3 {[%clk
0:00:06.3]} 64. Ng5+ {[%clk 0:00:04.2]} 64... Kg6 {[%clk 0:00:05.8]} 65. Be1
{[%clk 0:00:05.1]} 65... Kf6 {[%clk 0:00:05.7]} 66. Ne4+ {[%clk 0:00:04.3]}
66... Kf7 {[%clk 0:00:05.7]} 67. Ng5+ {[%clk 0:00:05]} 67... Ke8 {[%clk
0:00:06]} 68. Bc3 {[%clk 0:00:05.7]} 68... Kd7 {[%clk 0:00:06.1]} 69. Re2 {[%clk
0:00:05.4]} 69... Re8 {[%clk 0:00:05.1]} 70. Rf2 {[%clk 0:00:04.6]} 70... Ree3
{[%clk 0:00:05.4]} 71. Kg2 {[%clk 0:00:03.7]} 71... Nh4+ {[%clk 0:00:05.3]} 72.
Kh2 {[%clk 0:00:04.3]} 72... Nf3+ {[%clk 0:00:05.9]} 73. Nxf3 {[%clk 0:00:04.2]}
73... Rxf3 {[%clk 0:00:06.8]} 74. Rxf3 {[%clk 0:00:05]} 74... Rxf3 {[%clk
0:00:07.2]} 75. Be5 {[%clk 0:00:05.6]} 75... Ke6 {[%clk 0:00:07.4]} 76. Kg2
{[%clk 0:00:06.2]} 76... Rb3 {[%clk 0:00:07.4]} 77. h4 {[%clk 0:00:06.7]} 77...
Kf5 {[%clk 0:00:08.1]} 78. h5 {[%clk 0:00:07.2]} 78... Rb5 {[%clk 0:00:04.8]}
79. Bc3 {[%clk 0:00:07.6]} 79... Kxf4 {[%clk 0:00:04.1]} 80. h6 {[%clk
0:00:08.3]} 80... Rh5 {[%clk 0:00:04.2]} 81. Kf2 {[%clk 0:00:09]} 81... Ke4
{[%clk 0:00:03.8]} 82. Bg7 {[%clk 0:00:09.2]} 82... Kd5 {[%clk 0:00:03.6]} 83.
Kg3 {[%clk 0:00:09.7]} 83... Kc4 {[%clk 0:00:04.2]} 84. Kg4 {[%clk 0:00:10.4]}
84... Rh1 {[%clk 0:00:03.9]} 85. Kf5 {[%clk 0:00:10.8]} 85... Kb5 {[%clk
0:00:03.1]} 86. Kg6 {[%clk 0:00:09.5]} 86... Kxa5 {[%clk 0:00:02.4]} 87. h7
{[%clk 0:00:10.3]} 87... Rxh7 {[%clk 0:00:02]} 88. Kxh7 {[%clk 0:00:11.2]} 88...
Kb4 {[%clk 0:00:02.7]} 89. Kg6 {[%clk 0:00:12]} 89... Kb3 {[%clk 0:00:03.3]} 90.
Kf5 {[%clk 0:00:11.2]} 90... c5 {[%clk 0:00:03.9]} 91. Ke5 {[%clk 0:00:11.4]}
91... c4 {[%clk 0:00:03.8]} 92. Kd5 {[%clk 0:00:11.8]} 92... b5 {[%clk
0:00:04.2]} 93. Kc5 {[%clk 0:00:12]} 93... b4 {[%clk 0:00:01.9]} 94. Kb6 {[%clk
0:00:11.7]} 94... Kc2 {[%clk 0:00:02.1]} 95. Kxa6 {[%clk 0:00:10.4]} 95... c3
{[%clk 0:00:01.9]} 96. bxc3 {[%clk 0:00:10.7]} 96... bxc3 {[%clk 0:00:02.2]} 97.
Kb5 {[%clk 0:00:10.3]} 97... Kd3 {[%clk 0:00:02.1]} 98. Bxc3 {[%clk 0:00:11.2]}
1/2-1/2

[Event "Early-Titled-Tuesday-Blitz-February-27-2024"]
[Site "Chess.com"]
[Date "2024.02.27"]
[Round "3"]
[White "kidagent"]
[Black "JonasEilenberg"]
[Result "1/2-1/2"]
[WhiteElo "2322"]
[BlackElo "2561"]
[TimeControl "180+1"]
[EndTime "8:30:33 PST"]
[Termination "Game drawn - insufficient material"]

1. c4 {[%clk 0:03:00.9]} 1... e6 {[%clk 0:02:59]} 2. g3 {[%clk 0:03:00.8]} 2...
d5 {[%clk 0:02:59.9]} 3. Bg2 {[%clk 0:02:59.5]} 3... dxc4 {[%clk 0:03:00.6]} 4.
Na3 {[%clk 0:02:58.3]} 4... Bxa3 {[%clk 0:02:56.6]} 5. bxa3 {[%clk 0:02:58.3]}
5... Nf6 {[%clk 0:02:57.3]} 6. Nf3 {[%clk 0:02:57.8]} 6... Nc6 {[%clk
0:02:56.1]} 7. O-O {[%clk 0:02:53.1]} 7... O-O {[%clk 0:02:56.2]} 8. Bb2 {[%clk
0:02:53.2]} 8... Rb8 {[%clk 0:02:51.4]} 9. a4 {[%clk 0:02:51.5]} 9... a6 {[%clk
0:02:47.6]} 10. Qc2 {[%clk 0:02:44.8]} 10... b5 {[%clk 0:02:47.2]} 11. axb5
{[%clk 0:02:34.6]} 11... axb5 {[%clk 0:02:48.1]} 12. Ng5 {[%clk 0:02:33.8]}
12... Nd4 {[%clk 0:02:47.1]} 13. Qd1 {[%clk 0:02:19.9]} 13... h6 {[%clk
0:02:44.6]} 14. Ne4 {[%clk 0:02:18.3]} 14... Nxe4 {[%clk 0:02:43.2]} 15. Bxe4
{[%clk 0:02:18.9]} 15... Bb7 {[%clk 0:02:43]} 16. Bxb7 {[%clk 0:02:12.1]} 16...
Rxb7 {[%clk 0:02:43.9]} 17. e3 {[%clk 0:02:12.1]} 17... Nf5 {[%clk 0:02:43.9]}
18. a3 {[%clk 0:02:03.7]} 18... Qd5 {[%clk 0:02:43.1]} 19. f3 {[%clk 0:02:00.8]}
19... Rd8 {[%clk 0:02:42]} 20. Rf2 {[%clk 0:02:00.7]} 20... Nxe3 {[%clk
0:02:39]} 21. Qe2 {[%clk 0:01:56.7]} 21... Nc2 {[%clk 0:02:38.2]} 22. Rc1 {[%clk
0:01:55.1]} 22... Nd4 {[%clk 0:02:38.6]} 23. Qe4 {[%clk 0:01:50.7]} 23... Qxe4
{[%clk 0:02:34.7]} 24. fxe4 {[%clk 0:01:51.6]} 24... c5 {[%clk 0:02:34]} 25.
Rcf1 {[%clk 0:01:49.9]} 25... f6 {[%clk 0:02:32.3]} 26. Kg2 {[%clk 0:01:48.4]}
26... e5 {[%clk 0:02:32.4]} 27. Rb1 {[%clk 0:01:42.8]} 27... b4 {[%clk
0:02:31.2]} 28. Bc3 {[%clk 0:01:37.4]} 28... Nc2 {[%clk 0:02:23.4]} 29. axb4
{[%clk 0:01:32.5]} 29... cxb4 {[%clk 0:02:24.3]} 30. Bb2 {[%clk 0:01:32.3]}
30... b3 {[%clk 0:02:19.8]} 31. Bc3 {[%clk 0:01:31.3]} 31... Nb4 {[%clk
0:02:13.9]} 32. Ra1 {[%clk 0:01:29.2]} 32... Nd3 {[%clk 0:02:14]} 33. Rff1
{[%clk 0:01:29.5]} 33... b2 {[%clk 0:02:12.6]} 34. Rab1 {[%clk 0:01:27.8]} 34...
Ra8 {[%clk 0:02:12.6]} 35. Kf3 {[%clk 0:01:26.2]} 35... Rab8 {[%clk 0:02:02.7]}
36. Ke2 {[%clk 0:01:24.5]} 36... Nc5 {[%clk 0:02:03.1]} 37. Kd1 {[%clk
0:01:23.9]} 37... Nxe4 {[%clk 0:02:03.1]} 38. Kc2 {[%clk 0:01:23.3]} 38... Nxc3
{[%clk 0:02:03.2]} 39. dxc3 {[%clk 0:01:22.7]} 39... Rd8 {[%clk 0:01:57.9]} 40.
Rf2 {[%clk 0:01:20.6]} 40... Rdb8 {[%clk 0:01:55.2]} 41. Rd2 {[%clk 0:01:19.1]}
41... Kf7 {[%clk 0:01:55.1]} 42. Rd6 {[%clk 0:01:17.8]} 42... e4 {[%clk
0:01:53.2]} 43. Rc6 {[%clk 0:01:17.6]} 43... e3 {[%clk 0:01:51]} 44. Rxc4 {[%clk
0:01:18.1]} 44... Re7 {[%clk 0:01:51]} 45. Kd1 {[%clk 0:01:14.1]} 45... e2+
{[%clk 0:01:51.6]} 46. Ke1 {[%clk 0:01:14.1]} 46... Rd8 {[%clk 0:01:46.7]} 47.
Rd4 {[%clk 0:01:11.3]} 47... Rc8 {[%clk 0:01:45.4]} 48. Rd3 {[%clk 0:01:07]}
48... Ra8 {[%clk 0:01:44.3]} 49. Rd2 {[%clk 0:01:04.5]} 49... Ra3 {[%clk
0:01:40.1]} 50. Rc2 {[%clk 0:01:03.9]} 50... Re3 {[%clk 0:01:34.4]} 51. Rxe2
{[%clk 0:00:59.9]} 51... Raxc3 {[%clk 0:01:33.8]} 52. Rxb2 {[%clk 0:00:57]}
52... Rf3 {[%clk 0:01:25.6]} 53. Rb7+ {[%clk 0:00:50.2]} 53... Kg6 {[%clk
0:01:26.1]} 54. Ree7 {[%clk 0:00:50.2]} 54... Rce3+ {[%clk 0:01:25.7]} 55. Rxe3
{[%clk 0:00:49.6]} 55... Rxe3+ {[%clk 0:01:26.6]} 56. Kf2 {[%clk 0:00:49.9]}
56... Re5 {[%clk 0:01:27.5]} 57. Rb4 {[%clk 0:00:49.4]} 57... h5 {[%clk
0:01:28]} 58. Kf3 {[%clk 0:00:48.6]} 58... Ra5 {[%clk 0:01:27.4]} 59. h4 {[%clk
0:00:44.5]} 59... Kf5 {[%clk 0:01:27.1]} 60. Rf4+ {[%clk 0:00:42.5]} 60... Ke5
{[%clk 0:01:27.6]} 61. Rb4 {[%clk 0:00:43.4]} 61... Ra3+ {[%clk 0:01:26.4]} 62.
Kf2 {[%clk 0:00:43]} 62... Kf5 {[%clk 0:01:15.9]} 63. Kg2 {[%clk 0:00:41.4]}
63... Ra5 {[%clk 0:01:09.5]} 64. Kf3 {[%clk 0:00:40]} 64... g6 {[%clk
0:01:10.1]} 65. Rc4 {[%clk 0:00:38.5]} 65... Ke5 {[%clk 0:01:07.2]} 66. Rb4
{[%clk 0:00:38.1]} 66... Ra3+ {[%clk 0:01:05.9]} 67. Kf2 {[%clk 0:00:37.9]}
67... Ra2+ {[%clk 0:01:06.7]} 68. Kf3 {[%clk 0:00:38]} 68... Ra6 {[%clk
0:01:04.7]} 69. Rc4 {[%clk 0:00:37.2]} 69... f5 {[%clk 0:00:55.2]} 70. Rb4
{[%clk 0:00:37.2]} 70... Kf6 {[%clk 0:00:54.3]} 71. Rc4 {[%clk 0:00:37.1]} 71...
g5 {[%clk 0:00:54.2]} 72. hxg5+ {[%clk 0:00:35.9]} 72... Kxg5 {[%clk 0:00:55.1]}
73. Rb4 {[%clk 0:00:35.7]} 73... Ra3+ {[%clk 0:00:53.1]} 74. Kg2 {[%clk
0:00:35.2]} 74... Re3 {[%clk 0:00:50.7]} 75. Rb8 {[%clk 0:00:33.2]} 75... Re6
{[%clk 0:00:47.3]} 76. Rb4 {[%clk 0:00:32.1]} 76... Rc6 {[%clk 0:00:41.2]} 77.
Kh3 {[%clk 0:00:30.3]} 77... Rc3 {[%clk 0:00:34.2]} 78. Kg2 {[%clk 0:00:30.1]}
78... Rc2+ {[%clk 0:00:32]} 79. Kh3 {[%clk 0:00:29.3]} 79... Rc7 {[%clk
0:00:31.5]} 80. Kg2 {[%clk 0:00:26.3]} 80... Kf6 {[%clk 0:00:32]} 81. Rb8 {[%clk
0:00:25.1]} 81... Kg5 {[%clk 0:00:32.2]} 82. Rb4 {[%clk 0:00:24.9]} 82... Rd7
{[%clk 0:00:30.5]} 83. Kh3 {[%clk 0:00:23.5]} 83... Rd3 {[%clk 0:00:31.1]} 84.
Kg2 {[%clk 0:00:23.6]} 84... Rd2+ {[%clk 0:00:31.6]} 85. Kh3 {[%clk 0:00:23.7]}
85... Rd1 {[%clk 0:00:31.7]} 86. Kg2 {[%clk 0:00:23.5]} 86... Rd2+ {[%clk
0:00:31.5]} 87. Kf3 {[%clk 0:00:22.4]} 87... Ra2 {[%clk 0:00:32.4]} 88. Rc4
{[%clk 0:00:20.5]} 88... Ra3+ {[%clk 0:00:19.6]} 89. Kg2 {[%clk 0:00:20]} 89...
Ra7 {[%clk 0:00:20.5]} 90. Rb4 {[%clk 0:00:19.7]} 90... Rh7 {[%clk 0:00:20.6]}
91. Kh3 {[%clk 0:00:18.3]} 91... Rf7 {[%clk 0:00:19.1]} 92. Rc4 {[%clk
0:00:17.2]} 92... Kf6 {[%clk 0:00:19.1]} 93. Rf4 {[%clk 0:00:17.2]} 93... Rg7
{[%clk 0:00:18.7]} 94. Rb4 {[%clk 0:00:17.5]} 94... Re7 {[%clk 0:00:18.1]} 95.
Rc4 {[%clk 0:00:17.6]} 95... Re6 {[%clk 0:00:18.5]} 96. Rb4 {[%clk 0:00:17.1]}
96... Ke5 {[%clk 0:00:16]} 97. Kh4 {[%clk 0:00:16.6]} 97... Rg6 {[%clk 0:00:15]}
98. Rb3 {[%clk 0:00:15.1]} 98... Rh6 {[%clk 0:00:08.2]} 99. Kg5 {[%clk
0:00:13.9]} 99... Rh8 {[%clk 0:00:08.8]} 100. Re3+ {[%clk 0:00:13.9]} 100... Kd4
{[%clk 0:00:08.9]} 101. Rf3 {[%clk 0:00:14.2]} 101... Ke4 {[%clk 0:00:07.7]}
102. Rf4+ {[%clk 0:00:13.9]} 102... Ke3 {[%clk 0:00:08.2]} 103. Rxf5 {[%clk
0:00:14]} 103... Rg8+ {[%clk 0:00:07.3]} 104. Kh4 {[%clk 0:00:14.2]} 104... Ke4
{[%clk 0:00:06.4]} 105. Rxh5 {[%clk 0:00:13.7]} 105... Kf3 {[%clk 0:00:07]} 106.
Rg5 {[%clk 0:00:13.5]} 106... Rxg5 {[%clk 0:00:06.2]} 107. Kxg5 {[%clk
0:00:13.5]} 107... Kxg3 {[%clk 0:00:06.9]} 1/2-1/2

[Event "Early-Titled-Tuesday-Blitz-February-27-2024"]
[Site "Chess.com"]
[Date "2024.02.27"]
[Round "4"]
[White "SharapovEvgeny"]
[Black "Iunusovnuriddin"]
[Result "0-1"]
[WhiteElo "2516"]
[BlackElo "2365"]
[TimeControl "180+1"]
[EndTime "8:32:38 PST"]
[Termination "Iunusovnuriddin won by resignation"]

1. e4 {[%clk 0:03:00]} 1... e5 {[%clk 0:02:54.9]} 2. Nf3 {[%clk 0:02:59.7]} 2...
d6 {[%clk 0:02:54.8]} 3. d4 {[%clk 0:02:59.2]} 3... exd4 {[%clk 0:02:55.6]} 4.
Nxd4 {[%clk 0:02:59.2]} 4... Nf6 {[%clk 0:02:55.6]} 5. Nc3 {[%clk 0:02:59.5]}
5... Be7 {[%clk 0:02:56.2]} 6. Bf4 {[%clk 0:02:59.2]} 6... O-O {[%clk
0:02:55.2]} 7. Qd2 {[%clk 0:02:59.5]} 7... c6 {[%clk 0:02:51.1]} 8. O-O-O {[%clk
0:02:59.2]} 8... b5 {[%clk 0:02:51.2]} 9. f3 {[%clk 0:02:58.7]} 9... b4 {[%clk
0:02:44.8]} 10. Nce2 {[%clk 0:02:58.5]} 10... c5 {[%clk 0:02:45]} 11. Nf5 {[%clk
0:02:51.4]} 11... Bxf5 {[%clk 0:02:45]} 12. exf5 {[%clk 0:02:51.4]} 12... d5
{[%clk 0:02:45.5]} 13. Kb1 {[%clk 0:02:50.9]} 13... Nc6 {[%clk 0:02:44.5]} 14.
g4 {[%clk 0:02:49.8]} 14... d4 {[%clk 0:02:44.7]} 15. Ng3 {[%clk 0:02:43.4]}
15... Nd5 {[%clk 0:02:43.9]} 16. Ne4 {[%clk 0:02:42.9]} 16... Nc3+ {[%clk
0:02:43.5]} 17. bxc3 {[%clk 0:02:39.3]} 17... bxc3 {[%clk 0:02:43.4]} 18. Qf2
{[%clk 0:02:34.3]} 18... Qb6+ {[%clk 0:02:41.2]} 0-1